fUSD/lending_fUSD_20250213
["ID","MTS","AMOUNT","RATE_DAILY","PERIOD"]
[353009041,1739485894628,-316.26579422,0.00014173,2]
[353009042,1739485894639,-517.65791292,0.00014173,2]
[353009043,1739485894648,-518.74721669,0.00014173,2]
[353009044,1739485894658,-191.99939156,0.00014173,2]
[353009045,1739485894668,-358.23087651,0.00014173,2]
[353009046,1739485894677,-501.73648211,0.00014173,2]
[353009047,1739485894687,-324.43334389,0.00014173,2]
[353009048,1739485894697,-500.0,0.00014173,2]
[353009049,1739485894706,-500.0,0.00014173,2]
[353009050,1739485894716,-325.91600817,0.00014173,2]
[353009051,1739485894725,-299.0,0.0001418,2]
[353009052,1739485894735,-3420.98,0.00014181,2]
[353009053,1739485894744,-20422.16912934,0.0001419,2]
[353009054,1739485894754,-1124.476697,0.00014191,2]
[353009055,1739485894764,-1030.770305,0.00014191,2]
[353009056,1739485894773,-1369.077968,0.00014191,2]
[353009057,1739485894783,-500.0,0.00014191,2]
[353009058,1739485894792,-500.0,0.00014191,2]
[353009059,1739485894802,-781.27,0.00014191,2]
[353009060,1739485894811,-640.12,0.00014191,2]
[353009061,1739485894820,-571.73,0.00014191,2]
[353009062,1739485894830,-767.83,0.00014191,2]
[353009063,1739485894839,-517.58,0.00014191,2]
[353009064,1739485894849,-748.33,0.00014191,2]
[353009065,1739485894858,-500.0,0.00014191,2]
[353009066,1739485894867,-1019.36,0.00014191,2]
[353009067,1739485894877,-500.0,0.00014191,2]
[353009068,1739485894887,-500.0,0.00014191,2]
[353009069,1739485894897,-536.11,0.00014191,2]
[353009070,1739485894906,-853.88,0.00014191,2]
[353009071,1739485894916,-500.0,0.00014191,2]
[353009072,1739485894925,-500.0,0.00014191,2]
[353009073,1739485894935,-1237.75,0.00014191,2]
[353009074,1739485894945,-500.0,0.00014191,2]
[353009075,1739485894955,-823.6,0.00014191,2]
[353009076,1739485894963,-591.11915581,0.00014191,2]
[353009077,1739485894973,-500.0,0.00014191,2]
[353009078,1739485894983,-583.03,0.00014191,2]
[353009079,1739485894992,-588.86,0.00014191,2]
[353009080,1739485895002,-500.0,0.00014191,2]
[353009081,1739485895012,-839.01,0.00014191,2]
[353009082,1739485895025,-632.18,0.00014191,2]
[353009083,1739485895035,-500.0,0.00014191,2]
[353009084,1739485895044,-1100.34,0.00014191,2]
[353009085,1739485895055,-500.0,0.00014191,2]
[353009086,1739485895066,-907.89,0.00014191,2]
[353009087,1739485895075,-500.0,0.00014191,2]
[353009088,1739485895084,-791.76,0.00014191,2]
[353009089,1739485895094,-500.0,0.00014191,2]
[353009090,1739485895104,-1002.52,0.00014191,2]
[353009091,1739485895114,-500.0,0.00014191,2]
[353009092,1739485895123,-673.2,0.00014191,2]
[353009093,1739485895132,-864.99,0.00014191,2]
[353009094,1739485895143,-596.92247643,0.00014191,2]
[353009095,1739485895152,-556.42,0.00014191,2]
[353009096,1739485895162,-606.37,0.00014191,2]
[353009097,1739485895172,-500.0,0.00014191,2]
[353009098,1739485895181,-500.0,0.00014191,2]
[353009099,1739485895192,-500.0,0.00014191,2]
[353009100,1739485895202,-542.4,0.00014191,2]
[353009101,1739485895211,-500.0,0.00014191,2]
[353009102,1739485895220,-606.89,0.00014191,2]
[353009103,1739485895230,-551.03,0.00014191,2]
[353009104,1739485895239,-500.0,0.00014191,2]
[353009105,1739485895249,-571.58,0.00014191,2]
[353009106,1739485895258,-507.69,0.00014191,2]
[353009107,1739485895267,-500.0,0.00014191,2]
[353009108,1739485895276,-500.0,0.00014191,2]
[353009109,1739485895286,-500.0,0.00014191,2]
[353009110,1739485895295,-500.0,0.00014191,2]
[353009111,1739485895304,-309.22017268,0.00014191,2]
[353009112,1739485895314,-500.0,0.00014191,2]
[353009113,1739485895323,-500.0,0.00014191,2]
[353009114,1739485895332,-500.0,0.00014191,2]
[353009115,1739485895343,-500.0,0.00014191,2]
[353009116,1739485895353,-500.0,0.00014191,2]
[353009117,1739485895364,-2208.67,0.00014191,2]
[353009118,1739485895375,-543.67,0.00014191,2]
[353009119,1739485895386,-823.62,0.00014191,2]
[353009120,1739485895395,-653.16,0.00014191,2]
[353009121,1739485895404,-500.0,0.00014191,2]
[353009122,1739485895414,-638.54,0.00014191,2]
[353009123,1739485895424,-1041.6,0.00014191,2]
[353009124,1739485895434,-2539.19,0.00014191,2]
[353009125,1739485895444,-500.0,0.00014191,2]
[353009126,1739485895453,-3052.42,0.00014191,2]
[353009127,1739485895463,-514.61,0.00014191,2]
[353009128,1739485895477,-1525.33,0.00014191,2]
[353009129,1739485895489,-867.43,0.00014191,2]
[353009130,1739485895499,-500.0,0.00014191,2]
[353009131,1739485895508,-500.0,0.00014191,2]
[353009132,1739485895517,-1400.14,0.00014191,2]
[353009133,1739485895526,-917.77,0.00014191,2]
[353009134,1739485895702,-1241.27,0.00014191,2]
[353009135,1739485895712,-991.55,0.00014191,2]
[353009136,1739485895721,-566.52,0.00014191,2]
[353009137,1739485895731,-500.0,0.00014191,2]
[353009138,1739485895740,-500.0,0.00014191,2]
[353009139,1739485895749,-500.0,0.00014191,2]
[353009140,1739485895758,-500.0,0.00014191,2]
[353009141,1739485895767,-500.0,0.00014191,2]
[353009142,1739485895776,-633.2,0.00014191,2]
[353009143,1739485895786,-717.52,0.00014191,2]
[353009144,1739485895795,-689.5,0.00014191,2]
[353009145,1739485895804,-965.58,0.00014191,2]
[353009146,1739485895814,-500.0,0.00014191,2]
[353009147,1739485895823,-756.27,0.00014191,2]
[353009148,1739485895833,-687.68,0.00014191,2]
[353009149,1739485895842,-1669.58,0.00014191,2]
[353009150,1739485895851,-1501.09,0.00014191,2]
[353009151,1739485895861,-825.83,0.00014191,2]
[353009152,1739485895870,-1337.74,0.00014191,2]
[353009153,1739485895879,-500.0,0.00014191,2]
[353009154,1739485895889,-500.0,0.00014191,2]
[353009155,1739485895898,-1371.86,0.00014191,2]
[353009156,1739485895907,-500.0,0.00014191,2]
[353009157,1739485895917,-1702.26,0.00014191,2]
[353009158,1739485895926,-500.0,0.00014191,2]
[353009159,1739485895936,-1754.49,0.00014191,2]
[353009160,1739485895945,-1078.61,0.00014191,2]
[353009161,1739485895955,-869.45,0.00014191,2]
[353009162,1739485895964,-1158.07,0.00014191,2]
[353009163,1739485895973,-500.0,0.00014191,2]
[353009164,1739485895983,-500.0,0.00014191,2]
[353009165,1739485895992,-991.47,0.00014191,2]
[353009166,1739485896001,-1684.45,0.00014191,2]
[353009167,1739485896011,-526.8,0.00014191,2]
[353009168,1739485896024,-660.93,0.00014191,2]
[353009169,1739485896034,-1302.35,0.00014191,2]
[353009170,1739485896043,-854.62,0.00014191,2]
[353009171,1739485896052,-2012.26,0.00014191,2]
[353009172,1739485896061,-504.56,0.00014191,2]
[353009173,1739485896071,-763.9,0.00014191,2]
[353009174,1739485896080,-696.46,0.00014191,2]
[353009175,1739485896089,-835.17,0.00014191,2]
[353009176,1739485896099,-692.97,0.00014191,2]
[353009177,1739485896108,-566.32,0.00014191,2]
[353009178,1739485896117,-857.95,0.00014191,2]
[353009179,1739485896128,-2021.1,0.00014191,2]
[353009180,1739485896138,-702.16,0.00014191,2]
[353009181,1739485896148,-683.82,0.00014191,2]
[353009182,1739485896157,-1015.7,0.00014191,2]
[353009183,1739485896167,-713.38,0.00014191,2]
[353009184,1739485896176,-500.0,0.00014191,2]
[353009185,1739485896185,-500.0,0.00014191,2]
[353009186,1739485896195,-1424.92,0.00014191,2]
[353009187,1739485896205,-500.0,0.00014191,2]
[353009188,1739485896214,-500.0,0.00014191,2]
[353009189,1739485896224,-500.0,0.00014191,2]
[353009190,1739485896233,-811.86,0.00014191,2]
[353009191,1739485896243,-988.11,0.00014191,2]
[353009192,1739485896252,-1906.79,0.00014191,2]
[353009193,1739485896262,-1427.42,0.00014191,2]
[353009194,1739485896271,-524.63,0.00014191,2]
[353009195,1739485896281,-500.0,0.00014191,2]
[353009196,1739485896290,-881.54,0.00014191,2]
[353009197,1739485896299,-865.9,0.00014191,2]
[353009198,1739485896309,-1372.61,0.00014191,2]
[353009199,1739485896319,-758.33,0.00014191,2]
[353009200,1739485896328,-500.0,0.00014191,2]
[353009201,1739485896338,-1840.97,0.00014191,2]
[353009202,1739485896348,-1636.34,0.00014191,2]
[353009203,1739485896357,-1782.82,0.00014191,2]
[353009204,1739485896367,-1035.24,0.00014191,2]
[353009205,1739485896377,-557.25,0.00014191,2]
[353009206,1739485896387,-687.87,0.00014191,2]
[353009207,1739485896396,-888.74,0.00014191,2]
[353009208,1739485896406,-500.0,0.00014191,2]
[353009209,1739485896415,-1131.23,0.00014191,2]
[353009210,1739485896424,-976.11,0.00014191,2]
[353009211,1739485896433,-548.09,0.00014191,2]
[353009212,1739485896442,-1065.2,0.00014191,2]
[353009213,1739485896452,-500.0,0.00014191,2]
[353009214,1739485896460,-1519.15,0.00014191,2]
[353009215,1739485896471,-825.94,0.00014191,2]
[353009216,1739485896481,-717.12,0.00014191,2]
[353009217,1739485896490,-718.5,0.00014191,2]
[353009218,1739485896499,-500.0,0.00014191,2]
[353009219,1739485896508,-1464.62,0.00014191,2]
[353009220,1739485896518,-1779.83,0.00014191,2]
[353009221,1739485896527,-551.0,0.00014191,2]
[353009222,1739485896536,-1813.74,0.00014191,2]
[353009223,1739485896545,-558.37,0.00014191,2]
[353009224,1739485896554,-807.26,0.00014191,2]
[353009225,1739485896563,-1306.72,0.00014191,2]
[353009226,1739485896571,-1123.76,0.00014191,2]
[353009227,1739485896579,-500.0,0.00014191,2]
[353009228,1739485896589,-500.0,0.00014191,2]
[353009229,1739485896599,-844.9,0.00014191,2]
[353009230,1739485896609,-2257.68,0.00014191,2]
[353009231,1739485896618,-831.33,0.00014191,2]
[353009232,1739485896627,-923.9,0.00014191,2]
[353009233,1739485896637,-500.0,0.00014191,2]
[353009234,1739485896647,-840.31,0.00014191,2]
[353009235,1739485896656,-897.69,0.00014191,2]
[353009236,1739485896666,-1270.71,0.00014191,2]
[353009237,1739485896675,-853.17,0.00014191,2]
[353009238,1739485896684,-500.0,0.00014191,2]
[353009239,1739485896694,-500.0,0.00014191,2]
[353009240,1739485896703,-1705.94,0.00014191,2]
[353009241,1739485896713,-500.0,0.00014191,2]
[353009242,1739485896723,-876.71,0.00014191,2]
[353009243,1739485896732,-885.91,0.00014191,2]
[353009244,1739485896742,-500.0,0.00014191,2]
[353009245,1739485896752,-2161.09,0.00014191,2]
[353009246,1739485896761,-500.0,0.00014191,2]
[353009247,1739485896771,-500.0,0.00014191,2]
[353009248,1739485896781,-1238.79,0.00014191,2]
[353009249,1739485896790,-3040.0,0.00014191,2]
[353009250,1739485896800,-1105.8,0.00014191,2]
[353009251,1739485896809,-2265.19,0.00014191,2]
[353009252,1739485896818,-1322.86,0.00014191,2]
[353009253,1739485896827,-500.0,0.00014191,2]
[353009254,1739485896837,-646.18,0.00014191,2]
[353009255,1739485896846,-893.53,0.00014191,2]
[353009256,1739485896856,-906.34,0.00014191,2]
[353009257,1739485896865,-523.6,0.00014191,2]
[353009258,1739485896875,-500.0,0.00014191,2]
[353009259,1739485896885,-970.55,0.00014191,2]
[353009260,1739485896894,-702.31,0.00014191,2]
[353009261,1739485896904,-553.1,0.00014191,2]
[353009262,1739485896914,-2482.92,0.00014191,2]
[353009263,1739485896925,-500.0,0.00014191,2]
[353009264,1739485896934,-858.18,0.00014191,2]
[353009265,1739485896946,-669.76,0.00014191,2]
[353009266,1739485896955,-710.97,0.00014191,2]
[353009267,1739485896964,-1892.5,0.00014191,2]
[353009268,1739485896976,-739.26,0.00014191,2]
[353009269,1739485896986,-1559.26,0.00014191,2]
[353009270,1739485896996,-602.38,0.00014191,2]
[353009271,1739485897007,-1326.07,0.00014191,2]
[353009272,1739485897018,-835.99,0.00014191,2]
[353009273,1739485897030,-1789.82,0.00014191,2]
[353009274,1739485897040,-500.0,0.00014191,2]
[353009275,1739485897049,-1318.31,0.00014191,2]
[353009276,1739485897059,-500.0,0.00014191,2]
[353009277,1739485897069,-551.86,0.00014191,2]
[353009278,1739485897078,-500.0,0.00014191,2]
[353009279,1739485897088,-864.67,0.00014191,2]
[353009280,1739485897097,-1141.82,0.00014191,2]
[353009281,1739485897106,-1994.16,0.00014191,2]
[353009282,1739485897115,-812.11,0.00014191,2]
[353009283,1739485897124,-500.0,0.00014191,2]
[353009284,1739485897134,-500.0,0.00014191,2]
[353009285,1739485897143,-1079.19,0.00014191,2]
[353009286,1739485897152,-859.06,0.00014191,2]
[353009287,1739485897162,-1941.15,0.00014191,2]
[353009288,1739485897171,-2409.32,0.00014191,2]
[353009289,1739485897181,-592.63,0.00014191,2]
[353009290,1739485897191,-900.38,0.00014191,2]
[353009291,1739485897200,-1741.64,0.00014191,2]
[353009292,1739485897209,-1010.42,0.00014191,2]
[353009293,1739485897219,-730.65,0.00014191,2]
[353009294,1739485897228,-1201.88,0.00014191,2]
[353009295,1739485897237,-500.0,0.00014191,2]
[353009296,1739485897247,-645.62,0.00014191,2]
[353009297,1739485897256,-2964.55,0.00014191,2]
[353009298,1739485897266,-765.27,0.00014191,2]
[353009299,1739485897276,-1693.27,0.00014191,2]
[353009300,1739485897285,-1023.18,0.00014191,2]
[353009301,1739485897295,-1983.35,0.00014191,2]
[353009302,1739485897304,-1199.21,0.00014191,2]
[353009303,1739485897313,-1991.14,0.00014191,2]
[353009304,1739485897322,-533.09,0.00014191,2]
[353009305,1739485897333,-2700.69,0.00014191,2]
[353009306,1739485897343,-500.0,0.00014191,2]
[353009307,1739485897352,-4281.75,0.00014191,2]
[353009308,1739485897362,-1072.56,0.00014191,2]
[353009309,1739485897371,-2181.51,0.00014191,2]
[353009310,1739485897381,-2105.12,0.00014191,2]
[353009311,1739485897391,-500.0,0.00014191,2]
[353009312,1739485897400,-2362.29,0.00014191,2]
[353009313,1739485897410,-797.65,0.00014191,2]
[353009314,1739485897419,-1372.43,0.00014191,2]
[353009315,1739485897428,-500.0,0.00014191,2]
[353009316,1739485897439,-500.0,0.00014191,2]
[353009317,1739485897448,-2270.27,0.00014191,2]
[353009318,1739485897457,-500.0,0.00014191,2]
[353009319,1739485897467,-701.26,0.00014191,2]
[353009320,1739485897476,-1635.6,0.00014191,2]
[353009321,1739485897486,-1210.46,0.00014191,2]
[353009322,1739485897495,-1551.99,0.00014191,2]
[353009323,1739485897505,-2766.93,0.00014191,2]
[353009324,1739485897518,-4033.58,0.00014191,2]
[353009325,1739485897528,-2765.04,0.00014191,2]
[353009326,1739485897538,-660.75,0.00014191,2]
[353009327,1739485897547,-2103.7,0.00014191,2]
[353009328,1739485897557,-924.48,0.00014191,2]
[353009329,1739485897566,-794.33,0.00014191,2]
[353009330,1739485897575,-1374.92,0.00014191,2]
[353009331,1739485897585,-1140.21,0.00014191,2]
[353009332,1739485897595,-500.0,0.00014191,2]
[353009333,1739485897604,-1394.91,0.00014191,2]
[353009334,1739485897614,-2230.12,0.00014191,2]
[353009335,1739485897624,-500.0,0.00014191,2]
[353009336,1739485897633,-878.31,0.00014191,2]
[353009337,1739485897643,-1071.07,0.00014191,2]
[353009338,1739485897652,-3342.84,0.00014191,2]
[353009339,1739485897662,-683.58,0.00014191,2]
[353009340,1739485897671,-1308.38,0.00014191,2]
[353009341,1739485897681,-3531.08,0.00014191,2]
[353009342,1739485897691,-1653.81,0.00014191,2]
[353009343,1739485897701,-553.67,0.00014191,2]
[353009344,1739485897711,-988.77,0.00014191,2]
[353009345,1739485897721,-500.0,0.00014191,2]
[353009346,1739485897731,-2226.29,0.00014191,2]
[353009347,1739485897740,-969.77,0.00014191,2]
[353009348,1739485897750,-1807.21,0.00014191,2]
[353009349,1739485897759,-1796.12,0.00014191,2]
[353009350,1739485897769,-3314.33,0.00014191,2]
[353009351,1739485897778,-500.0,0.00014191,2]
[353009352,1739485897787,-3189.0,0.00014191,2]
[353009353,1739485897797,-803.11,0.00014191,2]
[353009354,1739485897807,-607.85,0.00014191,2]
[353009355,1739485897817,-761.91,0.00014191,2]
[353009356,1739485897826,-621.21,0.00014191,2]
[353009357,1739485897838,-1972.85,0.00014191,2]
[353009358,1739485897849,-3990.94,0.00014191,2]
[353009359,1739485897861,-523.93,0.00014191,2]
[353009360,1739485897871,-719.42,0.00014191,2]
[353009361,1739485897881,-749.77,0.00014191,2]
[353009362,1739485897892,-500.0,0.00014191,2]
[353009363,1739485897902,-1753.67,0.00014191,2]
[353009364,1739485897913,-2497.17,0.00014191,2]
[353009365,1739485897923,-3698.9,0.00014191,2]
[353009366,1739485897933,-1325.27,0.00014191,2]
[353009367,1739485897942,-500.0,0.00014191,2]
[353009368,1739485897952,-3120.71,0.00014191,2]
[353009369,1739485897962,-511.69,0.00014191,2]
[353009370,1739485897972,-3912.39,0.00014191,2]
[353009371,1739485897982,-1203.12,0.00014191,2]
[353009372,1739485897992,-635.38,0.00014191,2]
[353009373,1739485898002,-500.0,0.00014191,2]
[353009374,1739485898013,-1628.89,0.00014191,2]
[353009375,1739485898028,-1174.26,0.00014191,2]
[353009376,1739485898039,-500.0,0.00014191,2]
[353009377,1739485898048,-5014.48,0.00014191,2]
[353009378,1739485898060,-500.0,0.00014191,2]
[353009379,1739485898070,-591.53,0.00014191,2]
[353009380,1739485898081,-2834.89,0.00014191,2]
[353009381,1739485898093,-1129.98,0.00014191,2]
[353009382,1739485898105,-4012.08,0.00014191,2]
[353009383,1739485898114,-1877.06,0.00014191,2]
[353009384,1739485898125,-2305.18,0.00014191,2]
[353009385,1739485898135,-3400.07,0.00014191,2]
[353009386,1739485898145,-10601.94,0.00014191,2]
[353009387,1739485898156,-1278.06,0.00014191,2]
[353009388,1739485898167,-2677.19,0.00014191,2]
[353009389,1739485898176,-2091.53,0.00014191,2]
[353009390,1739485898187,-1914.19,0.00014191,2]
[353009391,1739485898197,-500.0,0.00014191,2]
[353009392,1739485898207,-1244.36,0.00014191,2]
[353009393,1739485898216,-6319.86,0.00014191,2]
[353009394,1739485898226,-2222.28,0.00014191,2]
[353009395,1739485898236,-2434.73,0.00014191,2]
[353009396,1739485898246,-1301.75,0.00014191,2]
[353009397,1739485898256,-3378.69,0.00014191,2]
[353009398,1739485898265,-1073.98,0.00014191,2]
[353009399,1739485898275,-500.0,0.00014191,2]
[353009400,1739485898285,-500.0,0.00014191,2]
[353009401,1739485898294,-1003.25,0.00014191,2]
[353009402,1739485898303,-3213.97,0.00014191,2]
[353009403,1739485898313,-1894.84,0.00014191,2]
[353009404,1739485898323,-1618.51,0.00014191,2]
[353009405,1739485898333,-3027.83,0.00014191,2]
[353009406,1739485898343,-1463.57,0.00014191,2]
[353009407,1739485898352,-551.57,0.00014191,2]
[353009408,1739485898362,-1866.04,0.00014191,2]
[353009409,1739485898371,-3405.09,0.00014191,2]
[353009410,1739485898381,-3794.0,0.00014191,2]
[353009411,1739485898391,-3558.25,0.00014191,2]
[353009412,1739485898400,-1199.38,0.00014191,2]
[353009413,1739485898411,-972.02,0.00014191,2]
[353009414,1739485898421,-5141.78,0.00014191,2]
[353009415,1739485898432,-5036.58,0.00014191,2]
[353009416,1739485898443,-1457.37,0.00014191,2]
[353009417,1739485898646,-4943.34,0.00014191,2]
[353009418,1739485898656,-500.0,0.00014191,2]
[353009419,1739485898666,-1646.26,0.00014191,2]
[353009420,1739485898675,-1023.76,0.00014191,2]
[353009421,1739485898684,-973.76,0.00014191,2]
[353009422,1739485898693,-1078.92,0.00014191,2]
[353009423,1739485898703,-3488.7,0.00014191,2]
[353009424,1739485898712,-9947.08,0.00014191,2]
[353009425,1739485898722,-1167.35,0.00014191,2]
[353009426,1739485898731,-1925.44,0.00014191,2]
[353009427,1739485898741,-3871.01,0.00014191,2]
[353009428,1739485898750,-3374.31,0.00014191,2]
[353009429,1739485898759,-3262.34,0.00014191,2]
[353009430,1739485898768,-3751.7,0.00014191,2]
[353009431,1739485898778,-2216.47,0.00014191,2]
[353009432,1739485898788,-500.0,0.00014191,2]
[353009433,1739485898797,-500.0,0.00014191,2]
[353009434,1739485898806,-1272.94,0.00014191,2]
[353009435,1739485898815,-2198.57,0.00014191,2]
[353009436,1739485898825,-3047.23,0.00014191,2]
[353009437,1739485898834,-4282.13,0.00014191,2]
[353009438,1739485898844,-1579.29,0.00014191,2]
[353009439,1739485898853,-2262.09,0.00014191,2]
[353009440,1739485898863,-2034.1,0.00014191,2]
[353009441,1739485898872,-4796.16,0.00014191,2]
[353009442,1739485898881,-621.58,0.00014191,2]
[353009443,1739485898891,-4188.27,0.00014191,2]
[353009444,1739485898901,-5302.96,0.00014191,2]
[353009445,1739485898910,-2900.35,0.00014191,2]
[353009446,1739485898920,-3352.12,0.00014191,2]
[353009447,1739485898929,-525.01,0.00014191,2]
[353009448,1739485898939,-2517.29,0.00014191,2]
[353009449,1739485898948,-3510.5,0.00014191,2]
[353009450,1739485898957,-1911.76,0.00014191,2]
[353009451,1739485898966,-3186.25,0.00014191,2]
[353009452,1739485898975,-1411.53,0.00014191,2]
[353009453,1739485898985,-5245.34,0.00014191,2]
[353009454,1739485898994,-500.0,0.00014191,2]
[353009455,1739485899004,-4040.71,0.00014191,2]
[353009456,1739485899015,-2434.4,0.00014191,2]
[353009457,1739485899029,-797.43,0.00014191,2]
[353009458,1739485899038,-3997.95,0.00014191,2]
[353009459,1739485899048,-500.0,0.00014191,2]
[353009460,1739485899057,-3418.06,0.00014191,2]
[353009461,1739485899069,-3613.39,0.00014191,2]
[353009462,1739485899079,-566.64,0.00014191,2]
[353009463,1739485899089,-500.0,0.00014191,2]
[353009464,1739485899100,-8838.73,0.00014191,2]
[353009465,1739485899110,-624.99,0.00014191,2]
[353009466,1739485899119,-720.74,0.00014191,2]
[353009467,1739485899129,-3533.94,0.00014191,2]
[353009468,1739485899139,-3776.32,0.00014191,2]
[353009469,1739485899149,-522.13,0.00014191,2]
[353009470,1739485899158,-4171.69,0.00014191,2]
[353009471,1739485899167,-2767.11,0.00014191,2]
[353009472,1739485899176,-500.0,0.00014191,2]
[353009473,1739485899186,-1300.63,0.00014191,2]
[353009474,1739485899195,-3523.18,0.00014191,2]
[353009475,1739485899206,-4629.45,0.00014191,2]
[353009476,1739485899215,-2317.93,0.00014191,2]
[353009477,1739485899225,-542.74,0.00014191,2]
[353009478,1739485899235,-6501.79,0.00014191,2]
[353009479,1739485899244,-649.96,0.00014191,2]
[353009480,1739485899254,-2852.77,0.00014191,2]
[353009481,1739485899263,-4468.57,0.00014191,2]
[353009482,1739485899273,-773.78,0.00014191,2]
[353009483,1739485899283,-724.47,0.00014191,2]
[353009484,1739485899292,-2513.38,0.00014191,2]
[353009485,1739485899303,-4071.43,0.00014191,2]
[353009486,1739485899313,-3680.29,0.00014191,2]
[353009487,1739485899323,-3113.41,0.00014191,2]
[353009488,1739485899333,-964.12,0.00014191,2]
[353009489,1739485899343,-500.0,0.00014191,2]
[353009490,1739485899353,-500.0,0.00014191,2]
[353009491,1739485899363,-500.0,0.00014191,2]
[353009492,1739485899372,-1523.71,0.00014191,2]
[353009493,1739485899382,-525.45,0.00014191,2]
[353009494,1739485899392,-741.53,0.00014191,2]
[353009495,1739485899402,-2768.98,0.00014191,2]
[353009496,1739485899412,-1470.77,0.00014191,2]
[353009497,1739485899421,-3441.38,0.00014191,2]
[353009498,1739485899430,-4132.51,0.00014191,2]
[353009499,1739485899440,-1712.88,0.00014191,2]
[353009500,1739485899450,-4938.55,0.00014191,2]
[353009501,1739485899459,-2124.68,0.00014191,2]
[353009502,1739485899469,-1226.02,0.00014191,2]
[353009503,1739485899479,-1789.26,0.00014191,2]
[353009504,1739485899489,-1451.96,0.00014191,2]
[353009505,1739485899499,-3558.23,0.00014191,2]
[353009506,1739485899508,-824.05,0.00014191,2]
[353009507,1739485899518,-880.79,0.00014191,2]
[353009508,1739485899528,-4167.53,0.00014191,2]
[353009509,1739485899538,-1936.97,0.00014191,2]
[353009510,1739485899548,-1838.56,0.00014191,2]
[353009511,1739485899557,-2962.2,0.00014191,2]
[353009512,1739485899567,-598.78,0.00014191,2]
[353009513,1739485899576,-709.99,0.00014191,2]
[353009514,1739485899586,-4502.56,0.00014191,2]
[353009515,1739485899596,-500.0,0.00014191,2]
[353009516,1739485899606,-1563.0,0.00014191,2]
[353009517,1739485899616,-300.0,0.00014192,2]
[353009518,1739485899625,-368.03,0.00014192,2]
[353009519,1739485899635,-1970.74,0.00014192,2]
[353009520,1739485899644,-72745.0,0.00014197,2]
[353009521,1739485899654,-500.0,0.00014199,2]
[353009522,1739485899664,-500.0,0.00014199,2]
[353009523,1739485899674,-500.0,0.00014199,2]
[353009524,1739485899683,-500.0,0.00014199,2]
[353009525,1739485899693,-500.0,0.00014199,2]
[353009526,1739485899703,-500.0,0.00014199,2]
[353009527,1739485899712,-543.604,0.000142,2]
[353009528,1739485899722,-11994.80440787,0.000142,2]
[353009529,1739485899732,-826.2846,0.000142,2]
[353009530,1739485899742,-826.2846,0.000142,2]
[353009531,1739485899752,-408.506,0.000142,2]
[353009532,1739485899761,-408.506,0.000142,2]
[353009533,1739485899771,-2175.46514531,0.0001421,7]
[353009534,1739485899781,-1564.04082271,0.00014219,2]
[353009535,1739485899791,-299.52613011,0.00014219,2]
[353009536,1739485899801,-8207.4170906,0.00014263,2]
[353009537,1739485899811,-284.8520212,0.00014263,2]
[353009538,1739485899821,-2292.5480195,0.00014263,2]
[353009539,1739485899831,-113103.0,0.00014271,2]
[353009540,1739485899840,-1124.476697,0.00014273,2]